Cogmind - Beta 16 @@@ ROGUE MODE // 2025.12.30 @ 15:32:54 Player: ILikeVoltron Result: Destroyed by G-34 Mercenary with Small Laser Performance ------------- Evolutions (0) 0 Regions Visited (1) 200 Robots Destroyed (14) 70 Value Destroyed (210) 210 Prototype IDs (0) 0 Alien Tech Used (0) 0 Bonus (0) 0 TOTAL SCORE: 480 Bonus ------- None Cogmind --------- Core Integrity 0/250 Matter 266/300 Energy 100/100 System Corruption 0% Temperature Cool (6) Movement Core (200) Ox3 Location -10/Materials Parts ------- > --- POWER (1) -------- (None) > --- PROPULSION (2) --- (None) > --- UTILITY (2) ------ Medium Storage Unit > --- WEAPON (2) ------- Light Assault Rifle > --- INVENTORY (10) --- Light Ion Engine Aluminum Leg Aluminum Leg Wheel Large Storage Unit Improved Terrain Scanner Tractor Beam Light Assault Rifle Mining Laser Peak State ------------ > --- POWER ------------ Ion Engine > --- PROPULSION ------- Aluminum Leg Aluminum Leg > --- UTILITY ---------- Small Storage Unit Tractor Beam > --- WEAPON ----------- Medium Laser Light Assault Rifle > --- INVENTORY -------- Light Ion Engine Light Treads Light Treads Wheel Improved Terrain Scanner Seismic Detector Light Assault Rifle Mining Laser [Rating: 8] Favorites ----------- Power Ion Engine Engine Ion Engine Propulsion Aluminum Leg Leg Aluminum Leg Utility Seismic Detector Device Seismic Detector Storage Medium Storage Unit Weapon Light Assault Rifle Energy Gun Medium Laser Ballistic Gun Light Assault Rifle Launcher Grenade Launcher Build | -11 -10 ------- Run | Yrd Mat Slots Evolved . | . . Power . | . . Propulsion . | . . Utility . | . . Weapon . | . . Parts Attached 6 | 2 4 Power . | . . Engine . | . . Core . | . . Reactor . | . . Propulsion 1 | . 1 Treads . | . . Leg 1 | . 1 Wheel . | . . Hover . | . . Flight . | . . Utility 3 | 2 1 Device 2 | 2 . Storage 1 | . 1 Processor . | . . Hackware . | . . Protection . | . . Artifact . | . . Weapon 2 | . 2 Energy Gun . | . . Energy Cannon . | . . Ballistic Gun 1 | . 1 Ballistic Cannon . | . . Launcher 1 | . 1 Special Weapon . | . . Impact Weapon . | . . Slashing Weapon . | . . Piercing Weapon . | . . Special Melee Weapon . | . . Unidentified Prototypes . | . . Parts Lost 7 | . 7 Power 1 | . 1 Propulsion 2 | . 2 Utility 1 | . 1 Weapon 3 | . 3 Highest Loss Streak 7 | . 7 To Critical Strikes . | . . Average Backups 8 | 7 9 Power 1 | 1 1 Propulsion 3 | 3 2 Utility 1 | 1 2 Weapon 2 | 1 2 Tool/Special . | . . Unused Backups 9 | . 9 Power . | . . Propulsion 4 | . 4 Utility 4 | . 4 Weapon 1 | . 1 Tool/Special . | . . Average Slot Usage (%) 95 | . 95 Engine 13 | . 13 Leg 25 | . 25 Device 12 | . 12 Storage 14 | . 14 Energy Gun 12 | . 12 Ballistic Gun 14 | . 14 Peak Build Rating 8 | 8 8 Average Rating 7 | 7 7 On Entrance 7 | 6 8 Avg Prop Armor Cover (%) . | . . Naked Turns . | . . Heaviest Build 19 | 14 19 Greatest Support 20 | 20 20 Greatest Overweight (x) 3 | . 3 Average Overweight (x) . | . . Largest Inventory Capacity 10 | 8 10 Average Capacity 9 | 8 9 Most Carried 10 | 8 10 Average Carried 8 | 7 9 Final Capacity 10 | 8 10 Final Carried 9 | 8 9 Class Distribution -------------------- 100% | Mutant Dominant Class ---------------- Mutant | -10/Materials Resources | -11 -10 ----------- Run | Yrd Mat Matter Collected 283 | 232 51 Remotely 27 | 27 . Salvage Created 322 | 149 173 Parts 35 | 17 18 Haulers Intercepted . | . . Recyclers Shooed . | . . Parts Field Recycled . | . . Retrieved Matter . | . . Parts Self-Destructed . | . . Prevented . | . . Parts Restored . | . . Kills | -11 -10 ------- Run | Yrd Mat Combat Hostiles Destroyed 7 | . 7 Guns 5 | . 5 AOE 2 | . 2 Classes Destroyed 6 | 3 3 Worker 2 | 2 . Tunneler 3 | 3 . Recycler 1 | 1 . Watcher 1 | . 1 Swarmer 4 | . 4 Grunt 3 | . 3 Best Kill Streak 4 | 3 4 Combat Bots Only 3 | . 3 Max Kills in Single Turn 2 | 1 2 Gunslinging . | . . Exploded 1 | . 1 Melee . | . . Uniques/NPCs Destroyed . | . . Combat | -11 -10 -------- Run | Yrd Mat Hostile Shots Fired 94 | . 94 Missed 22 | . 22 Hits 72 | . 72 Projectile 72 | . 72 Damage Taken 814 | . 814 Core 257 | . 257 Absorbed by Shields . | . . Core Remaining (%) 100 | 100 . Volleys Fired 55 | 22 33 Largest 2 | 2 2 Hottest 70 | 70 70 Shots Fired 107 | 44 63 Gun 104 | 44 60 Cannon . | . . Launcher 3 | . 3 Special . | . . Kinetic 59 | 22 37 Thermal 45 | 22 23 Explosive 3 | . 3 Electromagnetic . | . . Robot Hit Streak 12 | 12 6 Robot Miss Streak 6 | 6 4 Penetration Max . | . . Secondary Targets 2 | . 2 Max Gunslinging Chain 1 | . 1 Shots Hit Robots 64 | 27 37 Core Hits 26 | 9 17 Critical Kills 1 | 1 . Critical Parts Destroyed . | . . Critical Strikes 2 | 1 1 Burn 1 | . 1 Destroy 1 | 1 . Melee Attacks . | . . Impact . | . . Slashing . | . . Piercing . | . . Sneak Attacks . | . . Combat Hostiles . | . . Follow-up Attacks . | . . Damage Inflicted 889 | 279 610 Guns 653 | 279 374 Cannons . | . . Explosions 236 | . 236 Melee . | . . Ramming . | . . Kinetic 290 | 106 184 Thermal 363 | 173 190 Explosive 236 | . 236 Electromagnetic . | . . Impact . | . . Slashing . | . . Piercing . | . . Highest Corruption . | . . Average Corruption . | . . Corruption Purged . | . . Corruption Blocked . | . . Overload Shots . | . . Overflow Damage 37 | . 37 Projectiles . | . . Explosions 37 | . 37 Melee . | . . Knockbacks . | . . Impact . | . . Kinetic . | . . Secondary . | . . Self-Inflicted Damage 78 | . 78 Shots 2 | . 2 Rammed . | . . Targets Rammed . | . . Kicked . | . . Crushed . | . . Highest Temperature 193 | 130 193 Average Temperature 65 | 46 79 Received Heat Transfer 261 | . 261 Siege Activations . | . . Martial Activations . | . . Shielding Activations . | . . Robots Disrupted . | . . Combat Hostiles . | . . Robots Corrupted . | . . Combat Hostiles . | . . Parts Fried . | . . Impact Corruptions . | . . Robots Melted . | . . Combat Hostiles . | . . Parts Melted 3 | 1 2 Heat Transferred 1147 | 518 629 Parts Sabotaged . | . . Parts Stolen . | . . Parts Stripped . | . . Power Chain Reactions . | . . Alert | -11 -10 ------- Run | Yrd Mat Maximum Alert Level . | . . Low Security (%) 100 | 100 100 Level 1 . | . . Level 2 . | . . Level 3 . | . . Level 4 . | . . Level 5 . | . . High Security . | . . Max Security . | . . Peak Influence 108 | 10 108 Initial 3 | . 3 Average 15 | 2 21 Influence Increases 276 | 30 246 Destroy 0b10 Robot/C 140 | . 140 Destroy 0b10 Robot/NC 35 | 30 5 Destroy Leader 42 | . 42 Disable Machine 15 | . 15 Destroy Structure 14 | . 14 Lose Combat Pursuer 30 | . 30 Influence Decreases 190 | 25 165 Entered New Map 2 | . 2 Time Decay 118 | 25 93 Lost Part 70 | . 70 Squads Dispatched 2 | . 2 Investigation . | . . Extermination . | . . Reinforcement 2 | . 2 Assault . | . . Garrison . | . . Intercept . | . . Searches Triggered . | . . Construction Impeded . | . . Haulers Reinforced . | . . Active Scanning Responses . | . . Cargo Convoy Interrupts . | . . Stealth | -11 -10 --------- Run | Yrd Mat Distress Signals 4 | . 4 Communications Jammed . | . . Distress Signals . | . . Times Spotted 18 | . 18 Peak Tracking Total 6 | . 6 Tactical Retreats 1 | . 1 Traps | -11 -10 ------- Run | Yrd Mat Traps Triggered . | . . Indirectly . | . . Trap Hack Attempts . | . . Triggered . | . . Disarmed . | . . Reprogrammed . | . . Reused . | . . Traps Extracted . | . . Installed . | . . Triggered . | . . Machines | -11 -10 ---------- Run | Yrd Mat Machines Disabled 1 | . 1 Max in Single Turn 1 | . 1 Machines Repaired . | . . Machines Dismantled . | . . Machines Sabotaged . | . . Overloaded Fab Kills . | . . Hacking | -11 -10 --------- Run | Yrd Mat Machines Accessed . | . . Terminals . | . . Fabricators . | . . Repair Stations . | . . Recycling Units . | . . Scanalyzers . | . . Garrison Access . | . . Total Hacks . | . . Successful . | . . Failed . | . . Catastrophic . | . . Database Lockouts . | . . Manual . | . . Terminals . | . . Fabricators . | . . Repair Stations . | . . Recycling Units . | . . Scanalyzers . | . . Garrison Access . | . . Terminal Hacks . | . . Fabricator Hacks . | . . Repair Station Hacks . | . . Recycling Unit Hacks . | . . Scanalyzer . | . . Garrison Access Hacks . | . . Unauthorized Hacks . | . . Terminals . | . . Fabricators . | . . Repair Stations . | . . Recycling Units . | . . Scanalyzers . | . . Garrison Access . | . . Data Cores Recovered . | . . Used . | . . Hacking Detections . | . . Full Trace Events . | . . Feedback Events . | . . Feedback Blocked . | . . Robot Schematics Acquired . | . . Robots Built . | . . Authchips . | . . Time . | . . Total Robot Build Rating . | . . Part Schematics Acquired . | . . Parts Built . | . . Authchips . | . . Time . | . . Total Part Build Rating . | . . Part Studies Acquired . | . . Parts Repaired . | . . Time . | . . Parts Recycled . | . . Recycled Matter . | . . Retrieved Matter . | . . Retrieved Components . | . . Parts Scanalyzed . | . . Part Schematics Acquired . | . . Parts Damaged . | . . Bothacking | -11 -10 ------------ Run | Yrd Mat Used RIF Installer . | . . Robots Hacked . | . . Non-combat . | . . Combat . | . . Robot Hacks Applied . | . . Relay Couplers Released . | . . Fabnet Peak Effective % . | . . Robots Rewired . | . . Allies Hacked . | . . Hacks Repelled . | . . Allies | -11 -10 -------- Run | Yrd Mat Total Allies . | . . Largest Group . | . . Highest-Rated Group . | . . Highest-Rated Ally . | . . Total Orders . | . . Ally Attacks . | . . Total Damage . | . . Kills . | . . Allies Corrupted . | . . Allies Melted . | . . Intel | -11 -10 ------- Run | Yrd Mat Active Infowar (turns) 300 | 1 299 Seismic 300 | 1 299 Robot Analysis Total . | . . Derelict Logs Recovered . | . . Drone Launches . | . . Drone Recoveries . | . . Exploration | -11 -10 ------------- Run | Yrd Mat Turns Passed 464 | 138 326 Spaces Moved 166 | 44 122 Core 2 | . 2 Treads . | . . Legs 164 | 44 120 Wheels . | . . Hover . | . . Flight . | . . Fastest Speed 120 | 120 120 Average Speed 120 | 120 121 Slowest Speed 200 | 120 200 Overloaded Moves . | . . Propulsion Burnouts . | . . Robots Hopped . | . . Potential Cave-ins . | . . Cave-ins Triggered . | . . Exploration Rate (%) 19 | 4 35 Regions Visited 1 Branch Regions . Pre-discovered Areas . | . . Known Exits Taken . | . . Unknown Exits Taken 1 | 1 . Scrap Searched . | . . Spaces Dug . | . . Terrain Destroyed 12 | . 12 Melee . | . . Projectile . | . . AOE 12 | . 12 Terrain Rammed . | . . Walls Destroyed . | . . Machines Disabled . | . . Actions | -11 -10 --------- Run | Yrd Mat Total 335 | 89 246 Wait 97 | 18 79 Move 165 | 43 122 Hop . | . . Pick Up 7 | 3 4 Fast Attach 2 | 1 1 Attach 1 | . 1 Detach . | . . Swap 3 | 1 2 Drop 5 | 1 4 Fire 55 | 22 33 Melee . | . . Ram . | . . Kick . | . . Crush . | . . Escape Stasis . | . . Rewire . | . . Trap . | . . Miscellaneous . | . . Route ------- -11/Scrapyard -10/Materials (discovered 1 exit: [*Mat]) History --------- Turn | Location | Event 26 | -11/Scrapyard | Discovered new exit (range 3) 139 | -11/Scrapyard | Entered Materials 318 | -10/Materials | Build established: Mutant 323 | -10/Materials | Discovered new exit (range 5) 435 | -10/Materials | Core integrity fell below 50% 453 | -10/Materials | Core integrity fell below 20% 465 | -10/Materials | Destroyed by G-34 Mercenary with Small Laser Last Messages --------------- 00438_ Destroyed Flight Unit. 00438_ S-10 Pest destroyed. 00438_ W-16 Scout destroyed. 00438_ Seismic Detector destroyed. 00440_ Aluminum Leg destroyed. 00443_ Grenade Launcher destroyed. 00444_ U-05 Engineer lays Concrete. 00445_ Ion Engine destroyed. 00446_ U-05 Engineer lays Concrete. 00446_ U-05 Engineer destroyed. 00446_ S-10 Pest destroyed. 00448_ Acquired Lgt. Assault Rifle. 00448_ K-01 Serf collects debris. 00459_ S-10 Pest destroyed. 00459_ Switching to secondary target: G-34 Mercenary. 00459_ R-06 Scavenger collects Lgt. Ion Engine. 00460_ Lgt. Assault Rifle destroyed. 00460_ K-01 Serf collects debris. 00463_ R-06 Scavenger collects Lgt. Ion Engine. 00464_ K-01 Serf collects debris. Map ----- +----------------------------------------------------+ | ?????? ??????????????????????????# #????????? | | ??????###????????????????????????????# #????????? | | ?????????????????????????????????????# #????????? | | ?????????????????????????????????????# #????????? | | ????????????????????????#????????????# #????????? | | ???????????????????????## ###????????# #????????? | | ???????????????????????# ######### ####?????? | | ?????????????????????### #?????? | | ?????????????????????+ " < #?????? | | ???????????????????????# #?????? | | ???????????????????????# ###+###########?????? | | ???????????????????????## #??# #????????????? | | ??????????????????####### ???# """ #????????????? | | ??????????????? ?"""^ ???# """ #????????????? | | ??????????????? "T" ???# """ #????????????? | | ??????????????# ^ ^ "??# #????????????? | | ??????????????+ ^ Y??# % =#????????????? | | ??????????????# "??# "T" #????????????? | | ??????????????# =[#??# """ #????????????? | | ??????????????# *%#??# [= #???####?????? | | ?????????????## k =########+### #?????? | | ???????????? |=! g %* #?????? | | ???????????????? *%! g ^ +?????? | | ????????????????? """ =* #?????? | | ???????????????? """" % ######### #?????? | | ???????????????? """ @* #????????# ##?????? | | ???????????????? """ = ! #?? #??????? | | ????????????????? """r= """ ""#??? #??????? | | ??????????????? + """ T?????? #??????? | | ???????????????? # """ "???????#??????? | | ???????????????? # ???????????????? | | ????????????????###### #######???????????????? | | ????????????????????? ?????????????????????? | | ????????????????????! ?????????????????????? | | ????????????????????! ?????????????????????? | | ??????????????????? # # ?????????????????????? | | ?????????????????? ! # ? "????????????????????? | | ?????????????????? # ? "????????????????????? | | ?????????????????? ?# ? ????????????????????? | | ??????????????????????# ?##????????????????????? | | ??????????????????????? ???????????????????????? | | ?????????????????????????????????????????????????? | | ?????????????????????????????????????????????????? | | ?????????????????????????????????????????????????? | | ?????????????????????????????????????????????????? | | ?????????????????????????????????????????????????? | | ?????????????????????????????????????????????????? | | ?????????????????????????????????????????????????? | | ?????????????????????????????????????????????????? | | ?????????????????????????????????????????????????? | +----------------------------------------------------+ Best States ------------- Heat Dissipation 25 Energy Generation 10 Energy Capacity 250 Matter Stores 300 Matter Capacity 300 Sight Range 16 Terrain Scan Density 10 Evasion (%) 55 Item Schematics ----------------- None Robot Schematics ------------------ None Fabricated ------------ Nothing Repaired ---------- Nothing Studied --------- None Alien Tech Used ----------------- None Achievements -------------- None Challenges ------------ None Game ------ Seed RelayMissileCleaver Manual? 0 Play Time 00:06:20 Cumulative 148.6 hours Start 2025.12.30 @ 15:28:54 End 2025.12.30 @ 15:32:54 Sessions 1 Manual Loads 0 Difficulty Rogue Special Mode None Game No. 255 Rogue 251 Adventurer 0 Explorer 4 Win Type - Total 0 Types 0/0/0/0/0/0/0/0/0/0 Lore% 18 Gallery% 40 Achievement% 23 Wizard Run 0 Options --------- Layout 1 ASCII 0 Keyboard 1 Movement Arrows Keybinds 0 Fullscreen 1 Font 32/SmallcapsGlow Map View 130x35 Zoom Use 0% Tactical HUD 1 Map Filters NONE Filters NONE Steam 1 RUN: 9266a67e-191b-40c1-a9e8-d947b2dfa561